Cogmind - Beta 9.6 @@@ ROGUE MODE // 2020.05.18 @ 10:52:04 Player: TBExtent Result: Destroyed by Executioner with Helical Railgun Performance ------------- Evolutions (9) 4500 Regions Visited (29) 5800 Robots Destroyed (80) 400 Value Destroyed (3115) 3115 Prototype IDs (46) 920 Alien Tech Used (1) 200 Bonus (8136) 8136 TOTAL SCORE: 23071 Bonus ------- High Alert Combat Kills 20 Follower Combat Kills 2426 Entered Garrisons 1400 Used RIF Installer 3500 Aligned with FarCom 300 Built Enhanced Grunts 300 Found Hidden Lab 3000 Friendly Fire -2810 Cogmind --------- Core Integrity 0/1600 Matter 300/300 Energy 100/100 System Corruption 10% Temperature Cool (0) Movement Core (50) Location -1/Command Parts ------- > --- POWER (2) -------- (None) > --- PROPULSION (6) --- (None) > --- UTILITY (15) ----- Advanced Signal Interpreter Relay Coupler [Swarmer] (52) Relay Coupler [Grunt] (36) > --- WEAPON (2) ------- (None) > --- INVENTORY (4) ---- Improved Stasis Canceller Hypervelocity EM Gauss Rifle Improved Remote Datajack Plasma Lance Peak State ------------ > --- POWER ------------ Light Quantum Reactor Light Quantum Reactor > --- PROPULSION ------- Improved VTOL Module Improved VTOL Module Cooled Field Propulsion Drive Field Propulsion Array Improved Diametric Drive > --- UTILITY ---------- Lightpack 2.0 Advanced Signal Interpreter Experimental Utility Shielding Centrium Medium Armor Plating Improved Hacking Suite System Shield Quantum Router Relay Coupler [NC] Relay Coupler [Swarmer] Relay Coupler [Swarmer] Relay Coupler [Grunt] Relay Coupler [Grunt] Relay Coupler [Specialist] Relay Coupler [Hunter] > --- WEAPON ----------- Guided Remote Datajack Plasma Lance > --- INVENTORY -------- Centrium Leg Improved Stasis Canceller Experimental Utility Shielding Experimental Utility Shielding Experimental Utility Shielding Centrium Medium Armor Plating Centrium Medium Armor Plating Relay Coupler [Sentry] Transdimensional Reconstructor Core Regenerator Integrated Reactor Hypervelocity EM Gauss Rifle Hypervelocity EM Gauss Rifle Advanced Datajack Improved Remote Datajack Plasma Lance Plasma Lance [Rating: 168] Favorites ----------- Power Ion Engine Engine Ion Engine Power Core Light Fission Core Reactor Light Antimatter Reactor Propulsion Improved VTOL Module Treads Light Treads Leg Aluminum Leg Flight Unit Improved VTOL Module Utility Lightpack 2.0 Storage Lightpack 2.0 Processor Advanced Signal Interpreter Hackware Relay Coupler [NC] Protection Hardened Medium Armor Plating Weapon Katana Energy Gun EM Pulse Gun Energy Cannon Ion Cannon Ballistic Gun Assault Rifle Launcher Grenade Launcher Special Weapon Remote Datajack Slashing Weapon Katana Piercing Weapon Plasma Lance Special Melee Weapon Improved Datajack Build | -11 -10 -10 -10 -9 -8 -8 -8 -7 -7 -7 -7 -6 -6 -6 -6 -5 -5 -5 -5 -5 -5 -4 -4 -3 -3 -3 -2 -1 -1 ------- Run | Scr Mat Min Exi Min Mat Sto Gar Fac Gar Fac Gar Fac Gar Fac Gar Fac Ext Cet Arc Hub Gar Fac Gar Res Arm Lab Res Acc Com Slots Evolved 18 | . . . . . 4 . . 2 . . . 2 . . . 2 . . . . . 2 . 2 . . 2 2 . Power 1 | . . . . . . . . 1 . . . . . . . . . . . . . . . . . . . . . Propulsion 4 | . . . . . 1 . . 1 . . . 1 . . . . . . . . . . . 1 . . . . . Utility 13 | . . . . . 3 . . . . . . 1 . . . 2 . . . . . 2 . 1 . . 2 2 . Weapon . | . . . . . . . . . . . . . . . . . . . . . . . . . . . . . . Parts Attached 137 | . 8 4 3 . 19 17 3 2 5 2 1 4 1 2 1 1 3 . 1 . 5 4 3 11 6 1 9 4 17 Power 21 | . 2 . . . 1 2 . 1 1 . . 2 . . 1 . . . . . 2 1 1 1 2 . . . 4 Engine 10 | . 2 . . . 1 1 . 1 1 . . 1 . . 1 . . . . . 1 . . 1 . . . . . Core 5 | . . . . . . 1 . . . . . 1 . . . . . . . . 1 . . . 2 . . . . Reactor 6 | . . . . . . . . . . . . . . . . . . . . . . 1 1 . . . . . 4 Propulsion 41 | . . 2 . . 3 6 2 1 4 . . 2 1 . . . 1 . 1 . 2 1 2 2 1 . 2 2 6 Treads 1 | . . . . . . 1 . . . . . . . . . . . . . . . . . . . . . . . Leg 12 | . . 2 . . 3 2 1 . 2 . . . . . . . . . . . 1 . 1 . . . . . . Wheel . | . . . . . . . . . . . . . . . . . . . . . . . . . . . . . . Hover . | . . . . . . . . . . . . . . . . . . . . . . . . . . . . . . Flight 28 | . . . . . . 3 1 1 2 . . 2 1 . . . 1 . 1 . 1 1 1 2 1 . 2 2 6 Utility 45 | . 1 . 3 . 5 4 1 . . 2 . . . 1 . 1 2 . . . 1 1 . 5 3 1 7 2 5 Device . | . . . . . . . . . . . . . . . . . . . . . . . . . . . . . . Storage 10 | . 1 . 3 . 3 3 . . . . . . . . . . . . . . . . . . . . . . . Processor 2 | . . . . . . . 1 . . 1 . . . . . . . . . . . . . . . . . . . Hackware 18 | . . . . . . . . . . . . . . 1 . 1 2 . . . . . . 4 1 1 4 1 3 Protection 15 | . . . . . 2 1 . . . 1 . . . . . . . . . . 1 1 . 1 2 . 3 1 2 Artifact . | . . . . . . . . . . . . . . . . . . . . . . . . . . . . . . Weapon 30 | . 5 2 . . 10 5 . . . . 1 . . 1 . . . . . . . 1 . 3 . . . . 2 Energy Gun 8 | . 3 1 . . 3 1 . . . . . . . . . . . . . . . . . . . . . . . Energy Cannon 1 | . . . . . 1 . . . . . . . . . . . . . . . . . . . . . . . . Ballistic Gun 8 | . 2 . . . 3 3 . . . . . . . . . . . . . . . . . . . . . . . Ballistic Cannon . | . . . . . . . . . . . . . . . . . . . . . . . . . . . . . . Launcher 2 | . . 1 . . 1 . . . . . . . . . . . . . . . . . . . . . . . . Special Weapon 5 | . . . . . 2 . . . . . . . . . . . . . . . . . . 1 . . . . 2 Impact Weapon . | . . . . . . . . . . . . . . . . . . . . . . . . . . . . . . Slashing Weapon 2 | . . . . . . 1 . . . . 1 . . . . . . . . . . . . . . . . . . Piercing Weapon 2 | . . . . . . . . . . . . . . . . . . . . . . . . 2 . . . . . Special Melee Weapon 2 | . . . . . . . . . . . . . . 1 . . . . . . . 1 . . . . . . . Unidentified Prototypes 7 | . . . . . . 3 . . . . . 1 . . . . . . . . . . . . . . 2 1 . Parts Lost 85 | . 6 3 . . 8 13 . . 4 . . 1 1 . . . 1 . 2 . 1 1 1 2 3 . . . 38 Power 15 | . 2 . . . . 2 . . 2 . . . . . . . . . . . . . 1 . 2 . . . 6 Propulsion 28 | . . 2 . . 2 5 . . 1 . . 1 1 . . . 1 . 1 . . 1 . 1 . . . . 12 Utility 21 | . . . . . 1 2 . . . . . . . . . . . . . . 1 . . . 1 . . . 16 Weapon 21 | . 4 1 . . 5 4 . . 1 . . . . . . . . . 1 . . . . 1 . . . . 4 Highest Loss Streak 29 | . 2 3 . . 4 13 . . 4 . . 1 1 . . . 1 . 2 . 1 1 1 1 2 . . . 29 Average Slot Usage (%) 89 | . 97 96 100 100 81 87 61 69 65 67 73 69 80 91 93 88 92 94 88 88 88 81 84 88 89 90 92 90 85 Engine 8 | . 14 14 14 14 9 7 9 15 13 7 7 7 13 13 13 11 11 11 11 11 7 1 . 3 1 . . . . Core 1 | . . . . . . . . . . . . . . . . . . . . . 3 . . . 2 9 8 8 5 Leg 11 | . 28 25 28 28 26 20 1 . 1 . . . . . . . . . . . . . . . . . . . . Flight 14 | . . . . . . 2 25 30 27 30 30 27 33 33 33 29 29 29 29 29 28 26 25 23 23 23 22 22 17 Storage 15 | . 25 28 28 28 26 33 9 7 7 7 7 6 6 6 6 5 5 5 5 5 5 5 5 4 4 4 4 4 3 Processor 5 | . . . . . . . 7 7 7 14 15 13 13 13 13 11 11 11 11 11 11 10 10 9 9 8 4 4 4 Hackware 10 | . . . . . . . . . . . . . . 5 6 11 15 17 17 17 17 15 15 26 24 23 33 34 36 Protection 4 | . . . . . 6 7 . . . 6 7 6 6 6 6 5 5 5 5 5 5 7 10 5 7 9 8 9 9 Energy Gun 4 | . 13 12 14 14 4 . . . . . . . . . . . . . . . . . . . . . . . . Ballistic Gun 3 | . 14 3 . . 7 9 . . . . . . . . . . . . . . . . . . . . . . . Launcher 2 | . . 10 14 14 . . . . . . . . . . . . . . . . . . . . . . . . . Slashing Weapon 1 | . . . . . . . 9 7 6 . 4 6 6 6 6 5 5 5 5 5 5 5 5 3 . . . . . Naked Turns . | . . . . . . . . . . . . . . . . . . . . . . . . . . . . . . Heaviest Build 121 | 11 21 22 34 34 97 121 15 23 23 21 23 28 28 29 30 30 30 30 30 29 30 30 28 44 44 42 42 42 51 Greatest Support 63 | 20 20 20 20 20 35 35 18 24 24 24 24 30 30 30 30 30 30 30 30 30 30 30 30 44 44 44 46 63 63 Greatest Overweight (x) 33 | . 1 1 1 1 4 33 . . 2 . . . . . . . . . . . 1 . 1 . . . . . 1 Average Overweight (x) . | . . 1 1 1 1 1 . . . . . . . . . . . . . . . . . . . . . . . Largest Inventory Capacity 44 | . 10 10 14 14 28 44 24 24 24 24 24 24 24 24 24 24 24 24 24 24 24 24 24 24 24 24 24 24 24 Average Capacity 19 | . 9 10 11 14 20 30 24 24 24 24 24 24 24 24 24 24 24 24 24 24 24 24 24 24 24 24 24 24 22 Most Carried 32 | . 10 10 14 14 28 32 21 19 21 20 21 23 23 24 24 23 24 24 24 23 24 24 24 24 24 24 24 24 24 Average Carried 18 | . 8 8 10 14 18 28 20 18 19 18 20 20 22 23 24 23 22 23 23 23 23 23 23 23 21 22 23 24 20 Final Capacity 28 | 6 10 10 14 14 28 24 24 24 24 24 24 24 24 24 24 24 24 24 24 24 24 24 24 24 24 24 24 24 4 Final Carried 28 | 6 10 8 14 14 28 21 20 18 19 19 21 23 22 24 24 23 22 24 23 23 24 24 23 23 22 24 24 24 4 Class Distribution -------------------- 27% | Botlord-Sprinter 26% | Mutant 20% | Bothacker-Sprinter 10% | Hauler-Mutant 6% | Scavenger-Mutant 4% | Hauler-Sprinter 3% | Commander-Sprinter Dominant Class ---------------- Mutant | -10/Materials Scavenger-Mutant | -10/Mines Scavenger-Mutant | -10/Exiles Mutant | -9/Mines Hauler-Mutant | -8/Materials Hauler-Mutant | -8/Storage Hauler-Sprinter | -8/Garrison Hauler-Sprinter | -7/Factory Hauler-Sprinter | -7/Garrison Hauler-Sprinter | -7/Factory Bothacker-Sprinter | -7/Garrison Bothacker-Sprinter | -6/Factory Bothacker-Sprinter | -6/Garrison Bothacker-Sprinter | -6/Factory Bothacker-Sprinter | -6/Garrison Bothacker-Sprinter | -5/Factory Bothacker-Sprinter | -5/Extension Commander-Sprinter | -5/Cetus Commander-Sprinter | -5/Archives Commander-Sprinter | -5/Hub_04(d) Botlord-Sprinter | -5/Garrison Botlord-Sprinter | -4/Factory Botlord-Sprinter | -4/Garrison Botlord-Sprinter | -3/Research Botlord-Sprinter | -3/Armory Botlord-Sprinter | -3/Lab Botlord-Sprinter | -2/Research Botlord-Sprinter | -1/Access Botlord-Sprinter | -1/Command Resources | -11 -10 -10 -10 -9 -8 -8 -8 -7 -7 -7 -7 -6 -6 -6 -6 -5 -5 -5 -5 -5 -5 -4 -4 -3 -3 -3 -2 -1 -1 ----------- Run | Scr Mat Min Exi Min Mat Sto Gar Fac Gar Fac Gar Fac Gar Fac Gar Fac Ext Cet Arc Hub Gar Fac Gar Res Arm Lab Res Acc Com Matter Collected 2070 | 200 113 105 . 52 374 148 . . . . . 250 . . 36 . 50 . 5 . 45 . . 120 37 . 193 70 272 Remotely . | . . . . . . . . . . . . . . . . . . . . . . . . . . . . . . Salvage Created 3705 | . 581 121 . . 857 413 . . . . . 122 . . 49 . 233 77 . . . . . . 37 . 206 716 293 Parts 183 | . 35 3 . . 45 22 . . . . . 9 . . 4 . 8 3 . . . . . . 4 . 9 19 22 Haulers Intercepted 12 | . 2 . . . 2 . . . . . . 1 . . . . . . . . . . . . . . 1 6 . Recyclers Shooed 3 | . . 1 . . 2 . . . . . . . . . . . . . . . . . . . . . . . . Parts Field Recycled . | . . . . . . . . . . . . . . . . . . . . . . . . . . . . . . Retrieved Matter . | . . . . . . . . . . . . . . . . . . . . . . . . . . . . . . Parts Self-Destructed . | . . . . . . . . . . . . . . . . . . . . . . . . . . . . . . Prevented . | . . . . . . . . . . . . . . . . . . . . . . . . . . . . . . Kills | -11 -10 -10 -10 -9 -8 -8 -8 -7 -7 -7 -7 -6 -6 -6 -6 -5 -5 -5 -5 -5 -5 -4 -4 -3 -3 -3 -2 -1 -1 ------- Run | Scr Mat Min Exi Min Mat Sto Gar Fac Gar Fac Gar Fac Gar Fac Gar Fac Ext Cet Arc Hub Gar Fac Gar Res Arm Lab Res Acc Com Combat Hostiles Destroyed 54 | . 14 8 . . 15 8 . . . . . . . . 1 . 3 . . . . . . . . . 1 1 3 Melee 10 | . . . . . 1 . . . . . . . . . 1 . 3 . . . . . . . . . 1 1 3 Guns 28 | . 13 . . . 10 5 . . . . . . . . . . . . . . . . . . . . . . . Cannons 3 | . . . . . . 3 . . . . . . . . . . . . . . . . . . . . . . . AOE 13 | . 1 8 . . 4 . . . . . . . . . . . . . . . . . . . . . . . . Classes Destroyed 11 | . 5 2 . . 2 . . . . . . . . . 1 . . . . . . . . . 1 . . . . Worker 3 | . 2 . . . 1 . . . . . . . . . . . . . . . . . . . . . . . . Hauler 12 | . 2 . . . 2 . . . . . . 1 . . . . . . . . . . . . . . 1 6 . Recycler 2 | . . 1 . . 1 . . . . . . . . . . . . . . . . . . . . . . . . Operator 1 | . . . . . . . . . . . . . . . . . . . . . . . . . 1 . . . . Watcher 7 | . 1 . . . 1 . . . . . . 1 . . . . 1 1 . . . . . . . . . . 2 Swarmer 9 | . 6 . . . 3 . . . . . . . . . . . . . . . . . . . . . . . . Grunt 29 | . 8 3 . . 8 6 . . . . . . . . . . 2 . . . . . . . . . 1 1 . Sentry 6 | . . . . . 3 2 . . . . . . . . . . 1 . . . . . . . . . . . . Hunter 2 | . . . . . 1 . . . . . . . . . . . . . . . . . . . . . . . 1 Programmer 3 | . . . . . . . . . . . . . . . 1 . . . . . . . . . . . . . 2 Assembled 5 | . . 5 . . . . . . . . . . . . . . . . . . . . . . . . . . . Best Kill Streak 8 | . 5 8 . . 4 3 . . . . . 1 . . 1 . 3 1 . . . . . . 1 . 2 3 3 Combat Bots Only 7 | . 5 7 . . 3 3 . . . . . . . . 1 . 1 . . . . . . . . . 1 1 2 Max Kills in Single Turn 3 | . 2 3 . . 2 1 . . . . . 1 . . 1 . 1 1 . . . . . . 1 . 1 1 1 Gunslinging . | . . . . . . . . . . . . . . . . . . . . . . . . . . . . . . Exploded 2 | . 1 2 . . 2 . . . . . . . . . . . . . . . . . . . . . . . . Melee 1 | . . . . . 1 . . . . . . . . . 1 . 1 . . . . . . . . . 1 1 1 Uniques/NPCs Destroyed 1 | . . . . . . . . . . . . . . . . . . 1 . . . . . . . . . . . A7 (-5/Cetus) Combat | -11 -10 -10 -10 -9 -8 -8 -8 -7 -7 -7 -7 -6 -6 -6 -6 -5 -5 -5 -5 -5 -5 -4 -4 -3 -3 -3 -2 -1 -1 -------- Run | Scr Mat Min Exi Min Mat Sto Gar Fac Gar Fac Gar Fac Gar Fac Gar Fac Ext Cet Arc Hub Gar Fac Gar Res Arm Lab Res Acc Com Damage Taken 12378 | . 773 287 . . 1233 1766 107 . 592 . 152 45 54 . 44 . 226 41 129 39 19 323 138 285 544 . 451 225 4905 Core 2762 | . 142 82 . . 142 291 12 . 179 . 22 . . . 14 . 17 . . 19 . 23 18 44 32 . 124 17 1584 Absorbed by Shields 138 | . . . . . . . 12 . 45 . . . . . . . 69 12 . . . . . . . . . . . Core Remaining (%) 75 | 100 . . . 10 . . 19 . . . 71 . . . 98 . . . . . 96 . 96 . . 94 91 . . Volleys Fired 227 | . 54 13 . . 89 37 . . . . . . . . . . . . . . . . . 1 3 . 7 2 21 Largest 2 | . 2 2 . . 2 2 . . . . . . . . . . . . . . . . . 1 1 . 1 1 1 Hottest 100 | . 60 70 . . 100 83 . . . . . . . . . . . . . . . . . 30 30 . 30 30 40 Shots Fired 333 | . 107 20 . . 110 62 . . . . . . . . . . . . . . . . . 1 3 . 7 2 21 Gun 273 | . 107 11 . . 106 49 . . . . . . . . . . . . . . . . . . . . . . . Cannon 13 | . . . . . . 13 . . . . . . . . . . . . . . . . . . . . . . . Launcher 12 | . . 9 . . 3 . . . . . . . . . . . . . . . . . . . . . . . . Special 35 | . . . . . 1 . . . . . . . . . . . . . . . . . . 1 3 . 7 2 21 Kinetic 181 | . 57 4 . . 71 49 . . . . . . . . . . . . . . . . . . . . . . . Thermal 30 | . 9 . . . 8 13 . . . . . . . . . . . . . . . . . . . . . . . Explosive 12 | . . 9 . . 3 . . . . . . . . . . . . . . . . . . . . . . . . Electromagnetic 76 | . 41 7 . . 28 . . . . . . . . . . . . . . . . . . . . . . . . Robot Hit Streak 14 | . 8 9 . . 14 7 . . . . . . . . . . . . . . . . . 1 4 . 6 5 11 Robot Miss Streak 7 | . 7 1 . . 2 4 . . . . . . . . . . . . . . . . . . . . 1 1 2 Penetration Max . | . . . . . . . . . . . . . . . . . . . . . . . . . . . . . . Secondary Targets 3 | . 2 . . . . 1 . . . . . . . . . . . . . . . . . . . . . . . Max Gunslinging Chain 1 | . 1 . . . . 1 . . . . . . . . . . . . . . . . . . . . . . . Shots Hit Robots 324 | . 63 13 . . 76 37 . . . . . 7 . 7 3 1 43 12 1 . . 2 . 9 5 . 9 10 26 Core Hits 135 | . 29 16 . . 44 16 . . . . . 3 . . 1 . 4 3 . . . . . . 2 . 3 7 7 Critical Hits 3 | . . . . . 2 . . . . . . 1 . . . . . . . . . . . . . . . . . Critical Kills 1 | . . . . . . . . . . . . 1 . . . . . . . . . . . . . . . . . Critical Parts Destroyed 1 | . . . . . 1 . . . . . . . . . . . . . . . . . . . . . . . . Melee Attacks 290 | . . . . . . 3 5 . 1 . 1 14 . 14 6 9 45 12 2 . 6 22 . 18 24 5 30 35 38 Impact . | . . . . . . . . . . . . . . . . . . . . . . . . . . . . . . Slashing 102 | . . . . . . 3 5 . 1 . 1 14 . 2 6 8 17 11 1 . 6 20 . 7 . . . . . Piercing 133 | . . . . . . . . . . . . . . . . . . . . . . . . 1 24 5 30 35 38 Sneak Attacks 60 | . . . . . . . . . . . . 2 . 4 1 1 25 10 1 . . 1 . 4 . . 1 8 2 Combat Hostiles 6 | . . . . . . . . . . . . . . . 1 . 2 . . . . . . . . . . 2 1 Follow-up Attacks . | . . . . . . . . . . . . . . . . . . . . . . . . . . . . . . Damage Inflicted 8210 | . 926 803 . . 1451 655 . . . . . 403 . . 165 . 624 818 . . . . . . 129 . 278 1230 728 Guns 2436 | . 778 83 . . 1077 498 . . . . . . . . . . . . . . . . . . . . . . . Cannons 157 | . . . . . . 157 . . . . . . . . . . . . . . . . . . . . . . . Explosions 1215 | . 140 720 . . 355 . . . . . . . . . . . . . . . . . . . . . . . . Melee 4375 | . . . . . . . . . . . . 403 . . 165 . 624 818 . . . . . . 129 . 278 1230 728 Ramming 27 | . 8 . . . 19 . . . . . . . . . . . . . . . . . . . . . . . . Kinetic 1466 | . 262 24 . . 682 498 . . . . . . . . . . . . . . . . . . . . . . . Thermal 626 | . 198 . . . 271 157 . . . . . . . . . . . . . . . . . . . . . . . Explosive 869 | . . 720 . . 149 . . . . . . . . . . . . . . . . . . . . . . . . Electromagnetic 847 | . 458 59 . . 330 . . . . . . . . . . . . . . . . . . . . . . . . Impact . | . . . . . . . . . . . . . . . . . . . . . . . . . . . . . . Slashing 2010 | . . . . . . . . . . . . 403 . . 165 . 624 818 . . . . . . . . . . . Piercing 2365 | . . . . . . . . . . . . . . . . . . . . . . . . . 129 . 278 1230 728 Highest Corruption 10 | . . . . . . . . . . . . . . . 1 . . . . . . . . . 7 7 4 . 10 Average Corruption 6 | . . . . . . . . . . . . . . . 1 . . . . . . . . . 7 7 3 . 6 Corruption Purged . | . . . . . . . . . . . . . . . . . . . . . . . . . . . . . . Effects 17 | . . . . . . . . . . . . . . . . . . . . . . . . . 6 5 . . 6 Message Errors 3 | . . . . . . . . . . . . . . . . . . . . . . . . . 1 1 . . 1 Matter Fused 4 | . . . . . . . . . . . . . . . . . . . . . . . . . 1 1 . . 2 Heat Flow Errors 3 | . . . . . . . . . . . . . . . . . . . . . . . . . 1 2 . . . Energy Discharges 1 | . . . . . . . . . . . . . . . . . . . . . . . . . . 1 . . . Data Loss (minor) 1 | . . . . . . . . . . . . . . . . . . . . . . . . . 1 . . . . Alerts 1 | . . . . . . . . . . . . . . . . . . . . . . . . . . . . . 1 Misdirections 1 | . . . . . . . . . . . . . . . . . . . . . . . . . . . . . 1 Targeting Errors 3 | . . . . . . . . . . . . . . . . . . . . . . . . . 2 . . . 1 Overload Shots . | . . . . . . . . . . . . . . . . . . . . . . . . . . . . . . Overflow Damage 424 | . 4 83 . . 15 . . . . . . 10 . . 44 . 116 116 . . . . . . . . . 36 . Projectiles . | . . . . . . . . . . . . . . . . . . . . . . . . . . . . . . Explosions 102 | . 4 83 . . 15 . . . . . . . . . . . . . . . . . . . . . . . . Melee 322 | . . . . . . . . . . . . 10 . . 44 . 116 116 . . . . . . . . . 36 . Knockbacks 1 | . . . . . 1 . . . . . . . . . . . . . . . . . . . . . . . . Impact 1 | . . . . . 1 . . . . . . . . . . . . . . . . . . . . . . . . Kinetic . | . . . . . . . . . . . . . . . . . . . . . . . . . . . . . . Secondary . | . . . . . . . . . . . . . . . . . . . . . . . . . . . . . . Self-Inflicted Damage 195 | . 64 78 . . 53 . . . . . . . . . . . . . . . . . . . . . . . . Shots 6 | . 2 3 . . 1 . . . . . . . . . . . . . . . . . . . . . . . . Rammed 2 | . 1 . . . 1 . . . . . . . . . . . . . . . . . . . . . . . . Targets Rammed 6 | . 2 . . . 4 . . . . . . . . . . . . . . . . . . . . . . . . Kicked 4 | . 1 . . . 3 . . . . . . . . . . . . . . . . . . . . . . . . Crushed . | . . . . . . . . . . . . . . . . . . . . . . . . . . . . . . Highest Temperature 452 | . 85 48 . . 237 452 14 . 29 . 45 286 68 65 195 84 76 45 31 52 39 6 2 66 86 396 122 110 23 Average Temperature 50 | . 29 22 . . 75 205 7 . 8 . 26 93 24 21 83 28 20 15 12 23 13 3 2 15 11 98 29 31 6 Received Heat Transfer 2340 | . 204 30 . . 477 927 63 . 183 . 63 . 18 . . . 39 9 18 18 9 . 18 9 21 . 27 . 207 Effects 8 | . . . . . 1 6 . . . . . . . . . . . . . . . . . . . 1 . . . Shutdowns 2 | . . . . . . 1 . . . . . . . . . . . . . . . . . . . 1 . . . Energy Bleed 1 | . . . . . 1 . . . . . . . . . . . . . . . . . . . . . . . . Interference 2 | . . . . . . 2 . . . . . . . . . . . . . . . . . . . . . . . Damage (minor) 3 | . . . . . . 3 . . . . . . . . . . . . . . . . . . . . . . . Siege Activations . | . . . . . . . . . . . . . . . . . . . . . . . . . . . . . . Robots Corrupted . | . . . . . . . . . . . . . . . . . . . . . . . . . . . . . . Combat Hostiles . | . . . . . . . . . . . . . . . . . . . . . . . . . . . . . . Parts Fried 3 | . 1 . . . 2 . . . . . . . . . . . . . . . . . . . . . . . . Impact Corruptions . | . . . . . . . . . . . . . . . . . . . . . . . . . . . . . . Robots Melted . | . . . . . . . . . . . . . . . . . . . . . . . . . . . . . . Combat Hostiles . | . . . . . . . . . . . . . . . . . . . . . . . . . . . . . . Parts Melted 1 | . 1 . . . . . . . . . . . . . . . . . . . . . . . . . . . . Heat Transferred 832 | . 275 . . . 298 259 . . . . . . . . . . . . . . . . . . . . . . . Parts Sabotaged . | . . . . . . . . . . . . . . . . . . . . . . . . . . . . . . Parts Stolen . | . . . . . . . . . . . . . . . . . . . . . . . . . . . . . . Parts Stripped . | . . . . . . . . . . . . . . . . . . . . . . . . . . . . . . Power Chain Reactions 3 | . 2 . . . 1 . . . . . . . . . . . . . . . . . . . . . . . . Missiles Intercepted . | . . . . . . . . . . . . . . . . . . . . . . . . . . . . . . Alert | -11 -10 -10 -10 -9 -8 -8 -8 -7 -7 -7 -7 -6 -6 -6 -6 -5 -5 -5 -5 -5 -5 -4 -4 -3 -3 -3 -2 -1 -1 ------- Run | Scr Mat Min Exi Min Mat Sto Gar Fac Gar Fac Gar Fac Gar Fac Gar Fac Ext Cet Arc Hub Gar Fac Gar Res Arm Lab Res Acc Com Peak Influence 788 | . 375 75 . 77 266 225 49 25 92 65 110 192 128 109 124 87 433 438 307 444 788 502 367 367 278 . 178 253 416 Average Influence 168 | . 143 39 . 29 127 152 47 25 54 59 79 153 127 92 98 78 226 423 181 211 532 473 346 267 239 . 59 130 213 Maximum Alert Level 3 | . 1 . . . 1 1 . . . . . . . . . . 2 2 1 2 3 2 1 1 1 . . 1 2 Low Security (%) 67 | . 76 100 . 100 84 56 100 100 100 100 100 100 100 100 100 100 51 . 93 64 . . . . 7 . 100 83 40 Level 1 22 | . 23 . . . 15 43 . . . . . . . . . . 36 10 6 5 30 . 100 100 92 . . 16 57 Level 2 8 | . . . . . . . . . . . . . . . . . 12 89 . 30 33 99 . . . . . . 1 Level 3 1 | . . . . . . . . . . . . . . . . . . . . . 36 . . . . . . . . Level 4 . | . . . . . . . . . . . . . . . . . . . . . . . . . . . . . . Level 5 . | . . . . . . . . . . . . . . . . . . . . . . . . . . . . . . High Security . | . . . . . . . . . . . . . . . . . . . . . . . . . . . . . . Max Security . | . . . . . . . . . . . . . . . . . . . . . . . . . . . . . . Squads Dispatched 22 | . 3 . . . 1 2 . . . . . 2 . . . . . . . 3 . 3 . . 1 . 1 2 4 Investigation 9 | . 3 . . . . . . . . . . 2 . . . . . . . . . 2 . . . . . 1 1 Extermination 3 | . . . . . . . . . . . . . . . . . . . . . . 1 . . . . 1 . 1 Reinforcement 9 | . . . . . 1 2 . . . . . . . . . . . . . 2 . . . . 1 . . 1 2 Assault . | . . . . . . . . . . . . . . . . . . . . . . . . . . . . . . Garrison 1 | . . . . . . . . . . . . . . . . . . . . 1 . . . . . . . . . Intercept . | . . . . . . . . . . . . . . . . . . . . . . . . . . . . . . Construction Impeded . | . . . . . . . . . . . . . . . . . . . . . . . . . . . . . . Haulers Reinforced 1 | . . . . . . . . . . . . . . . . . . . . . . . . . . . . 1 . Stealth | -11 -10 -10 -10 -9 -8 -8 -8 -7 -7 -7 -7 -6 -6 -6 -6 -5 -5 -5 -5 -5 -5 -4 -4 -3 -3 -3 -2 -1 -1 --------- Run | Scr Mat Min Exi Min Mat Sto Gar Fac Gar Fac Gar Fac Gar Fac Gar Fac Ext Cet Arc Hub Gar Fac Gar Res Arm Lab Res Acc Com Distress Signals 27 | . 2 1 . . 3 2 . . . . . 1 . . . . 2 1 . . . 1 . . 5 . 3 1 5 Communications Jammed . | . . . . . . . . . . . . . . . . . . . . . . . . . . . . . . Distress Signals . | . . . . . . . . . . . . . . . . . . . . . . . . . . . . . . Times Spotted 427 | . 32 14 . 1 32 25 3 . 27 1 8 2 6 3 2 . 27 5 4 14 8 22 8 15 21 . 23 5 119 Peak Tracking Total 52 | . 5 6 . 3 7 10 3 . 24 1 10 3 8 3 3 . 5 5 4 7 6 15 12 6 10 . 13 3 52 Tactical Retreats 47 | . 5 2 . . 8 2 . . 1 . . 1 . . . . . . . 2 1 4 . 5 4 . 5 2 5 Traps | -11 -10 -10 -10 -9 -8 -8 -8 -7 -7 -7 -7 -6 -6 -6 -6 -5 -5 -5 -5 -5 -5 -4 -4 -3 -3 -3 -2 -1 -1 ------- Run | Scr Mat Min Exi Min Mat Sto Gar Fac Gar Fac Gar Fac Gar Fac Gar Fac Ext Cet Arc Hub Gar Fac Gar Res Arm Lab Res Acc Com Traps Triggered 26 | . 1 . . . . . 1 . 3 2 5 . 1 . . . 5 . . . 2 1 1 . 2 . 1 1 . Indirectly . | . . . . . . . . . . . . . . . . . . . . . . . . . . . . . . Trap Hack Attempts . | . . . . . . . . . . . . . . . . . . . . . . . . . . . . . . Triggered . | . . . . . . . . . . . . . . . . . . . . . . . . . . . . . . Disarmed . | . . . . . . . . . . . . . . . . . . . . . . . . . . . . . . Reprogrammed . | . . . . . . . . . . . . . . . . . . . . . . . . . . . . . . Reused . | . . . . . . . . . . . . . . . . . . . . . . . . . . . . . . Traps Extracted . | . . . . . . . . . . . . . . . . . . . . . . . . . . . . . . Installed . | . . . . . . . . . . . . . . . . . . . . . . . . . . . . . . Triggered . | . . . . . . . . . . . . . . . . . . . . . . . . . . . . . . Machines | -11 -10 -10 -10 -9 -8 -8 -8 -7 -7 -7 -7 -6 -6 -6 -6 -5 -5 -5 -5 -5 -5 -4 -4 -3 -3 -3 -2 -1 -1 ---------- Run | Scr Mat Min Exi Min Mat Sto Gar Fac Gar Fac Gar Fac Gar Fac Gar Fac Ext Cet Arc Hub Gar Fac Gar Res Arm Lab Res Acc Com Machines Disabled 14 | . . . . . 2 1 . . 1 . 1 . . . . . 1 . . 2 1 1 . 1 2 1 . . . Max in Single Turn 1 | . . . . . 1 1 . . 1 . 1 . . . . . . . . . 1 . . 1 1 1 . . . Garrison Access 4 | . . . . . . . . . . . . . . . . . . . . . . . . . . . 2 2 . Garrison Relay 3 | . . . . . . . . . 1 . 1 . . . . . . . . . 1 . . . . . . . . Energy Cycler 1 | . . . . . . . . . . . . . . . . . 1 . . . . . . . . . . . . Machines Sabotaged . | . . . . . . . . . . . . . . . . . . . . . . . . . . . . . . Garrisons Compromised . | . . . . . . . . . . . . . . . . . . . . . . . . . . . . . . Overloaded Fab Kills . | . . . . . . . . . . . . . . . . . . . . . . . . . . . . . . Fab Network Shutdowns . | . . . . . . . . . . . . . . . . . . . . . . . . . . . . . . Hacking | -11 -10 -10 -10 -9 -8 -8 -8 -7 -7 -7 -7 -6 -6 -6 -6 -5 -5 -5 -5 -5 -5 -4 -4 -3 -3 -3 -2 -1 -1 --------- Run | Scr Mat Min Exi Min Mat Sto Gar Fac Gar Fac Gar Fac Gar Fac Gar Fac Ext Cet Arc Hub Gar Fac Gar Res Arm Lab Res Acc Com Machines Accessed 82 | . 10 . 2 . 4 6 . 1 . 3 . 4 . 2 . 1 6 . . 2 . 2 . 5 2 2 12 12 6 Terminals 56 | . 8 . . . 3 5 . . . 2 . 1 . 1 . 1 6 . . 1 . . . 5 2 . 6 9 6 Fabricators 2 | . . . . . . . . . . . . . . . . . . . . . . . . . . . 1 1 . Repair Stations . | . . . . . . . . . . . . . . . . . . . . . . . . . . . . . . Recycling Units 5 | . 2 . . . . . . . . . . 2 . . . . . . . . . 1 . . . . . . . Scanalyzers 4 | . . . . . 1 . . . . . . . . . . . . . . . . . . . . . 3 . . Garrison Access 11 | . . . . . . 1 . 1 . 1 . 1 . 1 . . . . . 1 . 1 . . . . 2 2 . Total Hacks 246 | . 31 . 2 . 21 20 . 1 . 6 . 8 . 2 . 3 22 . . 2 . 3 . 12 3 11 42 35 22 Successful 133 | . 16 . 2 . 18 13 . 1 . 2 . 6 . 2 . 2 10 . . 2 . 3 . 2 1 11 22 14 6 Failed 113 | . 15 . . . 3 7 . . . 4 . 2 . . . 1 12 . . . . . . 10 2 . 20 21 16 Catastrophic 24 | . 2 . . . . . . . . . . 1 . . . . 1 . . . . . . 3 1 . 8 5 3 Database Lockouts . | . . . . . . . . . . . . . . . . . . . . . . . . . . . . . . Manual 102 | . 20 . 1 . 6 16 . . . 4 . 4 . . . 3 10 1 . . . 1 . 4 2 2 14 9 5 Terminals 181 | . 27 . . . 9 19 . . . 5 . 2 . 1 . 3 22 . . 1 . . . 12 3 . 24 31 22 Fabricators 7 | . . . . . . . . . . . . . . . . . . . . . . . . . . . 5 2 . Repair Stations . | . . . . . . . . . . . . . . . . . . . . . . . . . . . . . . Recycling Units 11 | . 4 . . . . . . . . . . 5 . . . . . . . . . 2 . . . . . . . Scanalyzers 23 | . . . . . 12 . . . . . . . . . . . . . . . . . . . . . 11 . . Garrison Access 11 | . . . . . . 1 . 1 . 1 . 1 . 1 . . . . . 1 . 1 . . . . 2 2 . Terminal Hacks 61 | . 6 . 2 . 4 6 . . . . . 1 . 1 . 1 4 . . 1 . . . 2 . 11 8 10 4 Record 12 | . . . 1 . . . . . . . . . . . . . . . . . . . . . . 11 . . . Robot Analysis 1 | . 1 . . . . . . . . . . . . . . . . . . . . . . . . . . . . Prototype ID Bank 1 | . . . . . . . . . . . . . . . . . . . . 1 . . . . . . . . . Open Door 7 | . . . . . . 1 . . . . . . . . . . 3 . . . . . . . . . . 3 . Branch Access Points 2 | . . . . . . . . . . . . . . . . . . . . . . . . 1 . . . 1 . Machine Index 1 | . . . . . . . . . . . . . . . . . . . . . . . . . . . . . 1 Terminal Index 6 | . 1 . . . 1 1 . . . . . . . . . 1 . . . . . . . . . . 1 1 . Scanalyzer Index 1 | . . . . . . . . . . . . . . . . . . . . . . . . . . . 1 . . Garrison Index 3 | . . . . . . . . . . . . 1 . . . . . . . . . . . . . . 1 1 . Unreport Threat 1 | . 1 . . . . . . . . . . . . . . . . . . . . . . . . . . . . Locate Traps 7 | . . . . . 1 . . . . . . . . . . . 1 . . . . . . . . . 3 . 2 Registered Components 5 | . 1 . . . . . . . . . . . . 1 . . . . . . . . . . . . 1 1 1 Registered Prototypes 1 | . . . . . . . . . . . . . . . . . . . . . . . . . . . 1 . . Zone Layout 12 | . 2 . . . 2 4 . . . . . . . . . . . . . . . . . 1 . . . 3 . EX-Prototype ID Bank 1 | . . . 1 . . . . . . . . . . . . . . . . . . . . . . . . . . Fabricator Hacks 2 | . . . . . . . . . . . . . . . . . . . . . . . . . . . 2 . . Load Schematic 1 | . . . . . . . . . . . . . . . . . . . . . . . . . . . 1 . . Build 1 | . . . . . . . . . . . . . . . . . . . . . . . . . . . 1 . . Repair Station Hacks . | . . . . . . . . . . . . . . . . . . . . . . . . . . . . . . Recycling Unit Hacks 4 | . 1 . . . . . . . . . . 2 . . . . . . . . . 1 . . . . . . . Report Inventory 4 | . 1 . . . . . . . . . . 2 . . . . . . . . . 1 . . . . . . . Scanalyzer 19 | . . . . . 12 . . . . . . . . . . . . . . . . . . . . . 7 . . Insert Component 12 | . . . . . 5 . . . . . . . . . . . . . . . . . . . . . 7 . . Analyze 7 | . . . . . 7 . . . . . . . . . . . . . . . . . . . . . . . . Garrison Access Hacks 11 | . . . . . . 1 . 1 . 1 . 1 . 1 . . . . . 1 . 1 . . . . 2 2 . Unlock Access 7 | . . . . . . 1 . 1 . 1 . 1 . 1 . . . . . 1 . 1 . . . . . . . Seal Access 4 | . . . . . . . . . . . . . . . . . . . . . . . . . . . 2 2 . Unauthorized Hacks 36 | . 9 . . . 2 6 . . . 1 . 2 . . . 1 6 . . . . 1 . . 1 . 3 2 2 Terminals 28 | . 7 . . . 2 6 . . . 1 . . . . . 1 6 . . . . . . . 1 . 1 1 2 Track 4 | . 4 . . . . . . . . . . . . . . . . . . . . . . . . . . . . Assimilate 2 | . . . . . . 1 . . . . . . . . . 1 . . . . . . . . . . . . . Botnet 19 | . 2 . . . 2 4 . . . 1 . . . . . . 5 . . . . . . . 1 . 1 1 2 Disrupt 2 | . . . . . . 1 . . . . . . . . . . 1 . . . . . . . . . . . . Operators 1 | . 1 . . . . . . . . . . . . . . . . . . . . . . . . . . . . Fabricators 3 | . . . . . . . . . . . . . . . . . . . . . . . . . . . 2 1 . Siphon 1 | . . . . . . . . . . . . . . . . . . . . . . . . . . . 1 . . Haulers 2 | . . . . . . . . . . . . . . . . . . . . . . . . . . . 1 1 . Repair Stations . | . . . . . . . . . . . . . . . . . . . . . . . . . . . . . . Recycling Units 5 | . 2 . . . . . . . . . . 2 . . . . . . . . . 1 . . . . . . . Tunnel 5 | . 2 . . . . . . . . . . 2 . . . . . . . . . 1 . . . . . . . Scanalyzers . | . . . . . . . . . . . . . . . . . . . . . . . . . . . . . . Garrison Access . | . . . . . . . . . . . . . . . . . . . . . . . . . . . . . . Data Cores Recovered 1 | . . . . . . . . . . . . . . . . . . . . . . . . . 1 . . . . Used . | . . . . . . . . . . . . . . . . . . . . . . . . . . . . . . Hacking Detections 56 | . 8 . . . 4 3 . 1 . 3 . 3 . 1 . 1 5 . . . . 1 . 4 2 . 9 6 5 Full Trace Events 2 | . 1 . . . . . . . . . . . . . . . . . . . . . . . . . . . 1 Feedback Events . | . . . . . . . . . . . . . . . . . . . . . . . . . . . . . . Feedback Blocked . | . . . . . . . . . . . . . . . . . . . . . . . . . . . . . . Robot Schematics Acquired . | . . . . . . . . . . . . . . . . . . . . . . . . . . . . . . Robots Built . | . . . . . . . . . . . . . . . . . . . . . . . . . . . . . . Matter . | . . . . . . . . . . . . . . . . . . . . . . . . . . . . . . Time . | . . . . . . . . . . . . . . . . . . . . . . . . . . . . . . Total Robot Build Rating . | . . . . . . . . . . . . . . . . . . . . . . . . . . . . . . Part Schematics Acquired 5 | . . . . . 5 . . . . . . . . . . . . . . . . . . . . . . . . Parts Built 1 | . . . . . . . . . . . . . . . . . . . . . . . . . . . 1 . . Matter 164 | . . . . . . . . . . . . . . . . . . . . . . . . . . . 164 . . Time 116 | . . . . . . . . . . . . . . . . . . . . . . . . . . . 116 . . Total Part Build Rating 3 | . . . . . . . . . . . . . . . . . . . . . . . . . . . 3 . . Parts Repaired . | . . . . . . . . . . . . . . . . . . . . . . . . . . . . . . Time . | . . . . . . . . . . . . . . . . . . . . . . . . . . . . . . Parts Recycled . | . . . . . . . . . . . . . . . . . . . . . . . . . . . . . . Recycled Matter . | . . . . . . . . . . . . . . . . . . . . . . . . . . . . . . Retrieved Matter . | . . . . . . . . . . . . . . . . . . . . . . . . . . . . . . Retrieved Components . | . . . . . . . . . . . . . . . . . . . . . . . . . . . . . . Parts Scanalyzed 5 | . . . . . 5 . . . . . . . . . . . . . . . . . . . . . . . . Part Schematics Acquired 5 | . . . . . 5 . . . . . . . . . . . . . . . . . . . . . . . . Parts Damaged . | . . . . . . . . . . . . . . . . . . . . . . . . . . . . . . Bothacking | -11 -10 -10 -10 -9 -8 -8 -8 -7 -7 -7 -7 -6 -6 -6 -6 -5 -5 -5 -5 -5 -5 -4 -4 -3 -3 -3 -2 -1 -1 ------------ Run | Scr Mat Min Exi Min Mat Sto Gar Fac Gar Fac Gar Fac Gar Fac Gar Fac Ext Cet Arc Hub Gar Fac Gar Res Arm Lab Res Acc Com Used RIF Installer 7 | . . . . . . . 1 . 1 . 1 . 1 . 1 . . . . . 1 . 1 . . . . . . Coupler Efficiency 2 | . . . . . . . . . . . . . . . 1 . . . . . 1 . . . . . . . . Robot Detection 1 | . . . . . . . . . 1 . . . . . . . . . . . . . . . . . . . . Patrol Navigation 1 | . . . . . . . . . . . 1 . . . . . . . . . . . . . . . . . . Autooverride 2 | . . . . . . . . . . . . . 1 . . . . . . . . . 1 . . . . . . Robots Hacked 86 | . . . . . . . . . . . . . . 5 . . 5 1 1 . . 3 . 7 7 . 8 2 47 Non-combat 23 | . . . . . . . . . . . . . . 5 . . 1 . 1 . . 2 . 5 3 . 5 . 1 Combat 63 | . . . . . . . . . . . . . . . . . 4 1 . . . 1 . 2 4 . 3 2 46 Autooverrided 48 | . . . . . . . . . . . . . . . . . 3 . . . . 1 . 1 4 . 2 1 36 Robot Hacks Applied 45 | . . . . . . . . . . . . . . 7 . . 3 1 1 . . 2 . 8 3 . 6 1 13 parse_system 4 | . . . . . . . . . . . . . . 3 . . . 1 . . . . . . . . . . . map_walls 1 | . . . . . . . . . . . . . . 1 . . . . . . . . . . . . . . . drop_inventory 7 | . . . . . . . . . . . . . . 1 . . . . . . . . . 3 . . 3 . . locate_stockpiles 1 | . . . . . . . . . . . . . . . . . . . . . . . . 1 . . . . . find_recycling 1 | . . . . . . . . . . . . . . . . . . . . . . 1 . . . . . . . purge_threat 2 | . . . . . . . . . . . . . . . . . 1 . 1 . . . . . . . . . . block_reporting 4 | . . . . . . . . . . . . . . . . . 1 . . . . . . . 3 . . . . map_route 8 | . . . . . . . . . . . . . . 2 . . . . . . . 1 . 2 . . 2 . 1 overload_power 10 | . . . . . . . . . . . . . . . . . . . . . . . . . . . 1 . 9 wipe_record 1 | . . . . . . . . . . . . . . . . . . . . . . . . 1 . . . . . reboot_system 2 | . . . . . . . . . . . . . . . . . 1 . . . . . . . . . . 1 . streamctrl_high 2 | . . . . . . . . . . . . . . . . . . . . . . . . 1 . . . . 1 formatsys_high 2 | . . . . . . . . . . . . . . . . . . . . . . . . . . . . . 2 Relay Couplers Released 14 | . . . . . . . . . 3 . 3 . . . . . . . . . 4 . . . . . 2 2 . Machine Destruction 14 | . . . . . . . . . 3 . 3 . . . . . . . . . 4 . . . . . 2 2 . Attached 14 | . . . . . . . . . . . . . . 1 . 1 2 . . . . . . 3 1 . 2 1 3 Robots Rewired 12 | . . . . . . . . . . . . . . . . . 12 . . . . . . . . . . . . Allies Hacked 3 | . . . . . . . . . . . . . . . . . . . . . . . . . . . . . 3 Hacks Repelled . | . . . . . . . . . . . . . . . . . . . . . . . . . . . . . . Allies | -11 -10 -10 -10 -9 -8 -8 -8 -7 -7 -7 -7 -6 -6 -6 -6 -5 -5 -5 -5 -5 -5 -4 -4 -3 -3 -3 -2 -1 -1 -------- Run | Scr Mat Min Exi Min Mat Sto Gar Fac Gar Fac Gar Fac Gar Fac Gar Fac Ext Cet Arc Hub Gar Fac Gar Res Arm Lab Res Acc Com Total Allies 83 | . . . . 3 . 1 . . . . . . . . . . 25 5 . . . 1 . 2 4 . 2 1 39 Largest Group 18 | . . . . 3 . 1 . . . . . . . . . . 14 18 16 14 10 4 . 1 3 . 1 1 5 Highest-Rated Group 947 | . . . . 40 . 10 . . . . . . . . . . 520 947 780 716 606 157 . 30 152 . 30 58 290 Highest-Rated Ally 156 | . . . . 16 . 10 . . . . . . . . . . 156 156 94 94 94 94 . 30 58 . 30 58 69 Total Orders 2 | . . . . . . . . . . . . . . . . . . . . . . . . . . . . . 2 GOTO 2 | . . . . . . . . . . . . . . . . . . . . . . . . . . . . . 2 Ally Attacks 387 | . . . . 35 . . . . . . . . . . . . 138 22 19 34 54 10 . 1 10 . 2 . 62 Total Damage 11032 | . . . . 337 . . . . . . . . . . . . 4063 821 588 957 1561 264 . 21 387 . 48 . 1985 Kills 73 | . . . . 3 . . . . . . . . . . . . 25 4 5 10 15 2 . . 1 . . . 8 Allies Corrupted . | . . . . . . . . . . . . . . . . . . . . . . . . . . . . . . Allies Melted . | . . . . . . . . . . . . . . . . . . . . . . . . . . . . . . Intel | -11 -10 -10 -10 -9 -8 -8 -8 -7 -7 -7 -7 -6 -6 -6 -6 -5 -5 -5 -5 -5 -5 -4 -4 -3 -3 -3 -2 -1 -1 ------- Run | Scr Mat Min Exi Min Mat Sto Gar Fac Gar Fac Gar Fac Gar Fac Gar Fac Ext Cet Arc Hub Gar Fac Gar Res Arm Lab Res Acc Com Robot Analysis Total 1 | . 1 . . . . . . . . . . . . . . . . . . . . . . . . . . . . Derelict Logs Recovered 3 | . . 1 . 2 . . . . . . . . . . . . . . . . . . . . . . . . . Drone Launches . | . . . . . . . . . . . . . . . . . . . . . . . . . . . . . . Drone Recoveries . | . . . . . . . . . . . . . . . . . . . . . . . . . . . . . . Exploration | -11 -10 -10 -10 -9 -8 -8 -8 -7 -7 -7 -7 -6 -6 -6 -6 -5 -5 -5 -5 -5 -5 -4 -4 -3 -3 -3 -2 -1 -1 ------------- Run | Scr Mat Min Exi Min Mat Sto Gar Fac Gar Fac Gar Fac Gar Fac Gar Fac Ext Cet Arc Hub Gar Fac Gar Res Arm Lab Res Acc Com Turns Passed 8624 | . 1234 178 527 702 764 445 56 11 72 102 307 185 340 73 86 134 535 273 65 75 240 283 55 287 240 124 529 233 469 Spaces Moved 9536 | 1 594 89 346 448 254 220 93 31 144 113 313 457 102 176 146 264 582 182 59 57 200 432 159 792 418 302 1154 598 810 Core 20 | . . . . . . 2 . . . . . . . . . . . . . . . . . . . . . . 18 Treads . | . . . . . . . . . . . . . . . . . . . . . . . . . . . . . . Legs 1875 | 1 594 89 346 448 254 138 . . 3 . . . . . . . . . . . 1 . 1 . . . . . . Wheels . | . . . . . . . . . . . . . . . . . . . . . . . . . . . . . . Hover . | . . . . . . . . . . . . . . . . . . . . . . . . . . . . . . Flight 7641 | . . . . . . 80 93 31 141 113 313 457 102 176 146 264 582 182 59 57 199 432 158 792 418 302 1154 598 792 Fastest Speed 20 | 120 120 150 150 150 150 29 29 26 26 26 26 23 23 23 23 23 23 23 23 23 23 23 23 23 24 24 20 20 23 Average Speed 48 | 120 129 150 150 150 165 143 29 26 29 26 26 24 23 23 23 23 23 23 23 23 23 23 23 23 24 24 22 20 25 Slowest Speed 1700 | 120 150 150 150 150 240 1700 29 26 180 26 26 26 23 23 23 23 23 23 23 23 160 23 160 24 24 24 24 24 100 Overloaded Moves . | . . . . . . . . . . . . . . . . . . . . . . . . . . . . . . Propulsion Burnouts . | . . . . . . . . . . . . . . . . . . . . . . . . . . . . . . Robots Hopped 62 | . . . . . . 2 . . 3 1 2 3 . . . . 16 . . 1 . 13 . 3 3 . 4 2 9 Cave-ins Triggered 1 | . . . . . . . . . . . . . . . . . . . . . . . . . 1 . . . . Exploration Rate (%) 38 | 2 91 27 69 89 33 44 36 2 38 6 59 19 29 6 32 7 71 57 71 6 40 13 49 25 42 98 34 22 31 Regions Visited 29 Branch Regions 11 Pre-discovered Areas 6 | . 2 . 1 . . . . . . . . 2 . . . . . . . . . 1 . . . . . . . Known Exits Taken 17 | . . . . . 1 1 . 1 . 1 . 1 . 1 . 1 1 1 1 1 . 1 . 1 1 1 1 1 . Unknown Exits Taken 5 | 1 1 1 1 1 . . . . . . . . . . . . . . . . . . . . . . . . . Scrap Searched 3 | . . 1 . 2 . . . . . . . . . . . . . . . . . . . . . . . . . Spaces Dug 134 | . . . . . 1 4 4 . . . . 7 . 2 3 8 . . . . 2 20 . 6 19 . 21 19 18 Terrain Destroyed 206 | . 10 51 . . 12 4 4 . . . . 7 . 2 3 8 . . . . 2 20 . 6 19 . 21 19 18 Melee 132 | . . . . . . 3 4 . . . . 7 . 2 3 8 . . . . 2 20 . 6 19 . 21 19 18 Projectile 2 | . . . . . 1 1 . . . . . . . . . . . . . . . . . . . . . . . AOE 72 | . 10 51 . . 11 . . . . . . . . . . . . . . . . . . . . . . . . Actions | -11 -10 -10 -10 -9 -8 -8 -8 -7 -7 -7 -7 -6 -6 -6 -6 -5 -5 -5 -5 -5 -5 -4 -4 -3 -3 -3 -2 -1 -1 --------- Run | Scr Mat Min Exi Min Mat Sto Gar Fac Gar Fac Gar Fac Gar Fac Gar Fac Ext Cet Arc Hub Gar Fac Gar Res Arm Lab Res Acc Com Total 12770 | . 966 113 355 478 482 293 112 33 167 184 534 504 417 200 189 324 926 395 107 117 382 571 174 868 516 348 1378 649 988 Wait 2160 | . 289 7 . 31 86 1 3 . . 32 129 25 297 . 36 51 220 198 46 61 140 122 6 36 64 27 147 8 98 Move 9401 | . 593 88 345 447 253 216 92 31 137 111 309 451 101 176 145 263 555 181 58 55 199 407 158 785 411 301 1146 593 794 Hop 50 | . . . . . . 2 . . 3 1 1 3 . . . . 10 . . 1 . 12 . 3 2 . 3 2 7 Pick Up 138 | . 15 1 5 . 28 8 . . 3 2 3 6 . 6 . . 2 3 . . 5 2 . 9 4 8 18 1 9 Fast Attach 11 | . 1 . . . . 1 . . . . . . . . . . . . . . . 1 . . . . 3 4 1 Attach 95 | . 7 3 . . 12 14 1 2 2 2 1 4 1 2 . 1 3 . 1 . 1 2 1 7 5 1 6 . 16 Detach 8 | . . . . . . 3 . . . . . . . . . . . . . . . 1 . 1 1 . . . 2 Swap 32 | . . 1 3 . 7 2 2 . 3 . . . . . 1 . . . . . 4 1 2 4 1 . . . 1 Drop 57 | . 5 . 2 . 3 6 . . . . . 1 . 2 1 . . 1 . . 3 1 . 4 . 6 18 4 . Fire 227 | . 54 13 . . 89 37 . . . . . . . . . . . . . . . . . 1 3 . 7 2 21 Melee 290 | . . . . . . 3 5 . 1 . 1 14 . 14 6 9 45 12 2 . 6 22 . 18 24 5 30 35 38 Ram . | . . . . . . . . . . . . . . . . . . . . . . . . . . . . . . Kick 6 | . 2 . . . 4 . . . . . . . . . . . . . . . . . . . . . . . . Crush . | . . . . . . . . . . . . . . . . . . . . . . . . . . . . . . Escape Stasis 293 | . . . . . . . 9 . 18 36 90 . 18 . . . 90 . . . 24 . 7 . 1 . . . . Rewire 2 | . . . . . . . . . . . . . . . . . 1 . . . . . . . . . . . 1 Trap . | . . . . . . . . . . . . . . . . . . . . . . . . . . . . . . Miscellaneous . | . . . . . . . . . . . . . . . . . . . . . . . . . . . . . . Route ------- -11/Scrapyard -10/Materials (discovered 5 exits: [*Mat x3] / [*Min x2]) -10/Mines -10/Exiles -9/Mines -8/Materials (discovered 3 exits: Fac / *Sto x2) -8/Storage -8/Garrison -7/Factory -7/Garrison -7/Factory (discovered 2 exits: *Fac / Gar) -7/Garrison (discovered 3 exits: *Fac x3) -6/Factory (discovered 2 exits: *Fac / Gar) -6/Garrison -6/Factory -6/Garrison -5/Factory -5/Extension (discovered 3 exits: *Fac x2 / *Cet) -5/Cetus -5/Archives (discovered 2 exits: *Fac / *Hub) -5/Hub_04(d) -5/Garrison -4/Factory -4/Garrison (discovered 2 exits: *Res x2) -3/Research (discovered 3 exits: *Arm / *Qua x2) -3/Armory -3/Lab -2/Research (discovered 2 exits: *Acc / *Tes) -1/Access -1/Command History --------- Turn | Location | Event 1 | -11/Scrapyard | Discovered new exit (range 0) 1 | -11/Scrapyard | Entered Materials 179 | -10/Materials | Discovered new exit (range 16) 187 | -10/Materials | Discovered new exit (range 9) 313 | -10/Materials | Build established: Mutant 391 | -10/Materials | Discovered new exit (range 10) 660 | -10/Materials | Discovered new exit (range 10) 792 | -10/Materials | Core integrity fell below 50% 900 | -10/Materials | Discovered new exit (range 15) 1235 | -10/Materials | Entered Mines 1236 | -10/Mines | Assembled infested the area 1240 | -10/Mines | Learned 4 Materials zone layouts 1244 | -10/Mines | Met a Derelict bent on vengeance 1283 | -10/Mines | Core integrity fell below 20% 1319 | -10/Mines | Destroyed 7 combat bots 1321 | -10/Mines | Lost 3 parts (2n1w) 1407 | -10/Mines | Deemed a non-threat by the Exiles lab entrance 1407 | -10/Mines | Discovered new exit (range 5) 1413 | -10/Mines | Entered Exiles 1449 | -10/Exiles | Met 8R-AWN 1475 | -10/Exiles | Met EX-HEX 1521 | -10/Exiles | Met EX-BIN 1538 | -10/Exiles | Aligned with FarCom system 1539 | -10/Exiles | Given EX-Vault access code 1574 | -10/Exiles | Opened EX-Vault 1586 | -10/Exiles | Found Lightpack 2.0 1591 | -10/Exiles | Build established: Scavenger-Mutant 1618 | -10/Exiles | Warned to stay clear of 0b10 Research branches 1660 | -10/Exiles | Met EX-DEC 1877 | -10/Exiles | Learned location of Zion (-7) 1921 | -10/Exiles | Discovered new exit (range 12) 1940 | -10/Exiles | Left Exiles lab with Lightpack 2.0 1940 | -10/Exiles | Entered Mines 1946 | -9/Mines | Assisted by bots powering up and referring to "LRC-V3" 2118 | -9/Mines | Build established: Mutant 2225 | -9/Mines | Learned Materials stockpile data 2234 | -9/Mines | Learned Materials emergency access door positions 2630 | -9/Mines | Discovered new exit (range 10) 2642 | -9/Mines | Entered Materials 2642 | -8/Materials | Evolved 4 slots: Propulsion x1, Utility x3 2643 | -8/Materials | Identified exit to Storage 2643 | -8/Materials | Identified exit to Factory 3134 | -8/Materials | Lost 4 parts (1n1u2w) 3209 | -8/Materials | Build established: Hauler-Mutant 3401 | -8/Materials | Discovered exit to Storage (range 3) 3406 | -8/Materials | Entered Storage 3792 | -8/Storage | Core integrity fell below 50% 3829 | -8/Storage | Lost 13 parts (2p5n2u4w) 3851 | -8/Storage | Identified exit to Garrison 3851 | -8/Storage | Entered Garrison 3853 | -8/Garrison | Installed Relay Interface Framework 3868 | -8/Garrison | Triggered checkpoint 3889 | -8/Garrison | Core integrity fell below 20% 3895 | -8/Garrison | Discovered exit to Factory (range 8) 3907 | -8/Garrison | Entered Factory 3907 | -7/Factory | Evolved 2 slots: Power x1, Propulsion x1 3918 | -7/Factory | Identified exit to Garrison 3918 | -7/Factory | Entered Garrison 3948 | -7/Garrison | Garrison Relay disabled 3956 | -7/Garrison | Triggered checkpoint 3970 | -7/Garrison | Triggered checkpoint 3973 | -7/Garrison | Triggered checkpoint 3974 | -7/Garrison | Triggered checkpoint 3983 | -7/Garrison | Discovered new exit (range 15) 3988 | -7/Garrison | Identified exit to Factory 3989 | -7/Garrison | Expanded RIF knowledge: Robot Detection 3990 | -7/Garrison | Entered Factory 4015 | -7/Factory | Lost 4 parts (2p1n1w) 4066 | -7/Factory | Discovered new exit (range 9) 4080 | -7/Factory | Identified exit to Factory 4092 | -7/Factory | Identified exit to Garrison 4092 | -7/Factory | Entered Garrison 4099 | -7/Garrison | Build established: Hauler-Sprinter 4124 | -7/Garrison | Triggered checkpoint 4128 | -7/Garrison | Discovered exit to Factory (range 10) 4148 | -7/Garrison | Triggered checkpoint 4189 | -7/Garrison | Garrison Relay disabled 4223 | -7/Garrison | Discovered exit to Factory (range 12) 4394 | -7/Garrison | Discovered exit to Factory (range 10) 4398 | -7/Garrison | Expanded RIF knowledge: Patrol Navigation 4399 | -7/Garrison | Entered Factory 4399 | -6/Factory | Evolved 2 slots: Propulsion x1, Utility x1 4481 | -6/Factory | Build established: Bothacker-Sprinter 4547 | -6/Factory | Spotted B-75 Beast 4548 | -6/Factory | Discovered new exit (range 16) 4568 | -6/Factory | Found Prototype Processor 4584 | -6/Factory | Identified exit to Garrison 4584 | -6/Factory | Entered Garrison 4586 | -6/Garrison | Expanded RIF knowledge: Autooverride 4914 | -6/Garrison | Triggered checkpoint 4921 | -6/Garrison | Discovered new exit (range 11) 4924 | -6/Garrison | Identified exit to Factory 4924 | -6/Garrison | Entered Factory 4997 | -6/Factory | Identified exit to Garrison 4997 | -6/Factory | Entered Garrison 5067 | -6/Garrison | Discovered new exit (range 15) 5070 | -6/Garrison | Identified exit to Factory 5072 | -6/Garrison | Expanded RIF knowledge: Coupler Efficiency 5083 | -6/Garrison | Entered Factory 5083 | -5/Factory | Evolved 2 slots: Utility x2 5214 | -5/Factory | Discovered new exit (range 16) 5217 | -5/Factory | Identified exit to Extension 5217 | -5/Factory | Entered Extension 5248 | -5/Extension | Rescued a captive Derelict 5258 | -5/Extension | Rescued a captive Derelict 5270 | -5/Extension | Rescued a captive Derelict 5370 | -5/Extension | Rescued a captive Derelict 5372 | -5/Extension | Rescued a captive Derelict 5438 | -5/Extension | Energy Cycler disabled 5438 | -5/Extension | Rescued a captive Derelict 5438 | -5/Extension | Rescued a captive Derelict 5439 | -5/Extension | Rescued A7 5439 | -5/Extension | Rescued a captive Derelict 5439 | -5/Extension | Rescued a captive Derelict 5453 | -5/Extension | Rescued a captive Derelict 5471 | -5/Extension | Spotted B-75 Beast 5488 | -5/Extension | Spotted B-75 Beast 5489 | -5/Extension | Discovered new exit (range 15) 5503 | -5/Extension | Allies destroyed B-75 Beast 5509 | -5/Extension | Allies destroyed B-75 Beast 5697 | -5/Extension | Discovered new exit (range 10) 5697 | -5/Extension | Discovered new exit (range 6) 5698 | -5/Extension | Identified exit to Cetus 5752 | -5/Extension | Entered Cetus 5752 | -5/Cetus | Accompanied by 13 allies 5757 | -5/Cetus | Acquired a Cetus Manufacturing Module code from A7 5757 | -5/Cetus | Spotted Cetus Guard 5757 | -5/Cetus | Spotted Cetus Guard 5757 | -5/Cetus | Spotted Cetus Guard 5757 | -5/Cetus | Spotted Cetus Guard 5765 | -5/Cetus | Allies destroyed Cetus Guard 5781 | -5/Cetus | Allies destroyed Cetus Guard 5793 | -5/Cetus | Started Cetus Manufacturing Module 5818 | -5/Cetus | Manufactured an Enhanced Grunt 5843 | -5/Cetus | Manufactured an Enhanced Grunt 5868 | -5/Cetus | Manufactured an Enhanced Grunt 5893 | -5/Cetus | Manufactured an Enhanced Grunt 5918 | -5/Cetus | Manufactured an Enhanced Grunt 5947 | -5/Cetus | Discovered new exit (range 15) 5973 | -5/Cetus | Found Prototype Protection 5977 | -5/Cetus | Destroyed A7 5978 | -5/Cetus | Extracted ID and sensor layout for unrecognized location from A7's data core 5987 | -5/Cetus | Identified exit to Archives 6025 | -5/Cetus | Entered Archives 6025 | -5/Archives | Accompanied by 17 allies 6036 | -5/Archives | Discovered new exit (range 13) 6045 | -5/Archives | Unable to access archive contents 6046 | -5/Archives | Discovered new exit (range 16) 6050 | -5/Archives | Identified exit to Hub_04(d) 6090 | -5/Archives | Entered Hub_04(d) 6090 | -5/Hub_04(d) | Accompanied by 14 allies 6112 | -5/Hub_04(d) | Garrison activated, responded to threat 6129 | -5/Hub_04(d) | Build established: Commander-Sprinter 6146 | -5/Hub_04(d) | Identified exit to Garrison 6165 | -5/Hub_04(d) | Entered Garrison 6165 | -5/Garrison | Accompanied by 10 allies 6167 | -5/Garrison | Expanded RIF knowledge: Coupler Efficiency 6222 | -5/Garrison | Triggered checkpoint 6247 | -5/Garrison | Garrison Relay disabled 6298 | -5/Garrison | Triggered checkpoint 6304 | -5/Garrison | Triggered checkpoint 6334 | -5/Garrison | Triggered checkpoint 6355 | -5/Garrison | Discovered new exit (range 10) 6359 | -5/Garrison | Identified exit to Factory 6405 | -5/Garrison | Entered Factory 6405 | -4/Factory | Accompanied by 4 allies 6405 | -4/Factory | Evolved 2 slots: Utility x2 6450 | -4/Factory | Spotted B-86 Titan 6569 | -4/Factory | Build established: Botlord-Sprinter 6688 | -4/Factory | Identified exit to Garrison 6688 | -4/Factory | Entered Garrison 6716 | -4/Garrison | Spotted B-86 Titan 6718 | -4/Garrison | Triggered checkpoint 6723 | -4/Garrison | Discovered new exit (range 8) 6739 | -4/Garrison | Discovered new exit (range 12) 6741 | -4/Garrison | Identified exit to Research 6742 | -4/Garrison | Expanded RIF knowledge: Autooverride 6743 | -4/Garrison | Entered Research 6743 | -3/Research | Evolved 2 slots: Propulsion x1, Utility x1 6922 | -3/Research | Discovered new exit (range 14) 6926 | -3/Research | Identified exit to Quarantine 6935 | -3/Research | Identified exit to Armory 7030 | -3/Research | Entered Armory 7128 | -3/Armory | Crushed by falling debris 7144 | -3/Armory | Spotted B-86 Titan 7270 | -3/Armory | Discovered new exit (range 3) 7270 | -3/Armory | Identified exit to Lab 7270 | -3/Armory | Entered Lab 7270 | -3/Lab | Discovered new exit (range 9) 7272 | -3/Lab | Identified exit to Research 7273 | -3/Lab | Hidden lab's door opened automatically 7273 | -3/Lab | Sensor layout match revealed 7274 | -3/Lab | Gained access to the hidden lab's interior 7275 | -3/Lab | Unable to decrypt terminal 7275 | -3/Lab | Unable to decrypt terminal 7282 | -3/Lab | Unable to decrypt terminal 7286 | -3/Lab | Found Prototype Hackware 7300 | -3/Lab | Unable to decrypt terminal 7339 | -3/Lab | Found Prototype Device 7340 | -3/Lab | Found Prototype Energy Gun 7343 | -3/Lab | Found Prototype Energy Gun 7351 | -3/Lab | Found Alien Artifact 7358 | -3/Lab | Found Alien Artifact 7370 | -3/Lab | Found Alien Artifact 7380 | -3/Lab | Found Prototype Special Weapon 7394 | -3/Lab | Entered Research 7394 | -2/Research | Evolved 2 slots: Utility x2 7396 | -2/Research | Identified Quantum Router 7442 | -2/Research | Identified Transdimensional Reconstructor 7442 | -2/Research | Identified Core Regenerator 7535 | -2/Research | Spotted B-90 Cyclops 7544 | -2/Research | Discovered new exit (range 16) 7547 | -2/Research | Identified exit to Testing 7742 | -2/Research | Fabricated Imp. VTOL Module? 7883 | -2/Research | Identified Integrated Reactor 7883 | -2/Research | Identified Hyp. EM Gauss Rifle (x2) 7885 | -2/Research | Identified Gui. Remote Datajack 7917 | -2/Research | Discovered new exit (range 14) 7923 | -2/Research | Identified exit to Access 7923 | -2/Research | Entered Access 7923 | -1/Access | Evolved 2 slots: Utility x2 7996 | -1/Access | Identified exit to Command 8065 | -1/Access | Spotted B-99 Colossus 8156 | -1/Access | Entered Command 8529 | -1/Command | Lost 9 parts (3p3n2u1w) 8573 | -1/Command | Installed Integrated Reactor, increased core energy generation (+2%) 8587 | -1/Command | System corruption reached 10% 8592 | -1/Command | Core integrity fell below 50% 8615 | -1/Command | Spotted B-99 Colossus 8623 | -1/Command | Spotted Alpha 7 8623 | -1/Command | Spotted Alpha 7 8623 | -1/Command | Spotted Striker 8623 | -1/Command | Spotted Striker 8623 | -1/Command | Spotted Executioner 8623 | -1/Command | Spotted Executioner 8623 | -1/Command | Spotted Executioner 8623 | -1/Command | Spotted Executioner 8624 | -1/Command | Core integrity fell below 20% 8624 | -1/Command | Spotted B-99 Colossus 8625 | -1/Command | Destroyed by Executioner with Helical Railgun Last Messages --------------- 08618_ ALERT: Hostiles spotted, dispatching reinforcements to Terminal C014. 08618_ O-32 Director locks terminal. 08619_ Knocked back. 08619_ Plasma Lance destroyed. 08619_ Relay Coupler [Swarmer] destroyed. 08619_ Quantum Router destroyed. 08619_ Imp. Hacking Suite destroyed. 08619_ Relay Coupler [NC] destroyed. 08619_ Knocked back. 08619_ Penetrated by Slug. 08619_ Slug penetrates Terminal. 08619_ Penetrated by Slug. 08619_ Relay Coupler [Grunt] destroyed. 08619_ Slug penetrates Terminal. 08621_ B-99 Colossus activates siege mode. 08623_ Penetrated by Slug. 08623_ Slug penetrates Wall. 08624_ Penetrated by Slug. 08624_ Slug penetrates Door. Map ----- +----------------------------------------------------+ | ### ######"###### #?# #????###????????????? | | + #?# #???????????????????? | | + #?# #???????????????????? | | + #?# #???????????????????? | | + "" #?# #???????????????????? | | + "" #?# #???????????????????? | | ### ##### T" #####?# #???????????????????? | | #?# #???# "" #######+#####???????????????? | | ##?#####???# "" pp# #???????????????? | | ???????????# p# #???????????????? | | ??????????## % p# #???????????????? | | ??????????#" p# * ! #???????????????? | | ???????????# # #???????????????? | | ???????????# # #???????????????? | | ?????????### + = +???????????????? | | ?????????#""!!] p#############???????????????? | | ?????????#""!]= p#???????????????????????????? | | ?????????#""!]= p##??????????????????????????? | | ?????????#T p"##?????????????? ??????????? | | ?????????#"" pBB#??######?#? ??????????? | | ?????????#"" pBB###7#K# # #BB ??????????? | | ?????????#"" p"##^^^^^E E "???????????? | | ?????????### p +^^^^^ "???????????? | | ???????????# [ +^^^^^ "???????????? | | ???????????# +^^^^^ "???????????? | | ????????# ;^@^^^ ^ "???????????? | | ????????# ####+#####;### 7^K^E E "???????????? | | ????????#??????????????### # # # # ????????? | | ??????????????????????????##?#????BB?????????????? | | ?????????????????=????????????????BB?????????????? | | ?????????????????????????????????????????????????? | | ?????????????????????????????????????????????????? | | ?????????????????????????????????????????????????? | | ??????????????????????????????????????Y??????????? | | ?????????????????????????????????????????????????? | | ?????????????????????????????????????????????????? | | ?????????????????????????????????????????????????? | | ?????????????????????????????????????????????????? | | ?????????????????????????????????????????????????? | | ?????????????????????????????????????????????????? | | ?????????????????????????????????????????????????? | | ?????????????????????????????????????????????????? | | ?????????????????????????????????????????????????? | | ??????????????]??????????????????????????????????? | | ?????????????????????????????????????????????????? | | ?????????????????????????????????????????????????? | | ?????????????????????????????????????????????????? | | ?????????????????????????????????????????????????? | | ?????????????????????????????????????????????????? | | ?????????????????????????????????????????????????? | +----------------------------------------------------+ Best States ------------- Heat Dissipation 52 Energy Generation 45 Energy Capacity 460 Matter Stores 300 Matter Capacity 300 Sight Range 16 Terrain Scan Density 10 Armor Coverage 450 Resistance: EM 15 Core Shielding 20 Propulsion Shielding 66 Utility Shielding 90 Evasion (%) 66 Melee Accuracy 6 Recoil Reduction 1 Offensive Hacking 12 Defensive Hacking 35 Item Schematics ----------------- Imp. VTOL Module | -8/Materials | Scanalyzed Lgt. Nuclear Core | -8/Materials | Scanalyzed Katana | -8/Materials | Scanalyzed Imp. Datajack | -8/Materials | Scanalyzed Med. Storage Unit | -8/Materials | Scanalyzed Robot Schematics ------------------ None Fabricated ------------ Imp. VTOL Module | x1 | -2/Research Alien Tech Used ----------------- Integrated Reactor Achievements -------------- Pwned Challenges ------------ None Game ------ Seed ScanSurgeFlamer Manual? 0 Play Time 03:35:46 Cumulative 246.5 hours Start 2020.05.17 @ 18:28:44 End 2020.05.18 @ 10:52:04 Sessions 5 Manual Loads 0 Difficulty Rogue Special Mode None Game No. 130 Rogue 122 Adventurer 8 Explorer 0 Win Type - Total 12 Types 9/0/1/2/0/0/0 Lore% 78 Gallery% 79 Achievement% 66 Wizard Run 0 Options --------- ASCII 0 Keyboard 0 Movement Mouse Keybinds 0 Fullscreen 2 Font 14/SmallcapsGlow Map View 72x52 Tactical HUD 1 Map Filters NONE Filters NONE Steam 0 RUN: 94656943-ae3d-4f34-b435-a696e86c76b3